fUSD/lending_fUSD_20251031
["ID","MTS","AMOUNT","RATE_DAILY","PERIOD"]
[392769617,1761935433266,-500.0,0.00014985,2]
[392769619,1761935433275,-151.0,0.00014988,2]
[392769621,1761935433284,-150.0,0.0001499,2]
[392769623,1761935433294,-240.00564482,0.0001499,2]
[392769625,1761935433303,-297.48720938,0.0001499,2]
[392769627,1761935433314,-202.51279062,0.0001499,2]
[392769629,1761935433323,-150.0,0.0001499,2]
[392769631,1761935433333,-150.0,0.0001499,2]
[392769633,1761935433342,-150.0,0.0001499,2]
[392769635,1761935433350,-500.0,0.0001499,2]
[392769637,1761935433360,-500.0,0.0001499,2]
[392769639,1761935433370,-257.02911303,0.0001499,2]
[392769641,1761935433379,-500.0,0.0001499,2]
[392769643,1761935433389,-150.0,0.0001499,2]
[392769645,1761935433398,-500.0,0.0001499,2]
[392769647,1761935433408,-500.0,0.0001499,2]
[392769649,1761935433417,-500.0,0.0001499,2]
[392769651,1761935433426,-500.0,0.0001499,2]
[392769653,1761935433435,-500.0,0.0001499,2]
[392769655,1761935433445,-185.48510014,0.0001499,2]
[392769657,1761935433454,-500.0,0.0001499,2]
[392769659,1761935433463,-502.90597415,0.0001499,2]
[392769661,1761935433472,-500.0,0.0001499,2]
[392769663,1761935433485,-500.0,0.0001499,2]
[392769665,1761935433495,-279.50419798,0.0001499,2]
[392769667,1761935433504,-500.0,0.0001499,2]
[392769669,1761935433514,-500.0,0.0001499,2]
[392769671,1761935433523,-541.85550486,0.0001499,2]
[392769673,1761935433534,-2178.0,0.00014991,2]
[392769675,1761935433544,-35915.53826718,0.00014991,2]
[392769678,1761935433557,-56015.00000004,0.00014991,2]
[392769680,1761935433572,-2081.75885692,0.00014991,2]
[392769685,1761935433606,-16997.46647059,0.00014991,2]
[392769687,1761935433619,-14251.8,0.00014991,2]
[392769689,1761935433631,-4278.2265,0.00014991,2]
[392769839,1761935437718,-403.731228,0.00014593,2]
[392769840,1761935437727,-963.31615908,0.00014991,2]
[392769841,1761935437738,-478.485,0.00014991,2]
[392769842,1761935437875,-3302.68961241,0.00014991,2]
[392769843,1761935437886,-29536.9389913,0.00014991,2]
[392769844,1761935437897,-24399.73732163,0.00014991,2]
[392769845,1761935437908,-10227.98517533,0.00014991,2]
[392769846,1761935437920,-295.18118668,0.00014991,2]
[392769847,1761935437936,-3636.82058928,0.00014991,2]
[392769848,1761935437948,-4987.25782081,0.00014991,2]
[392769849,1761935437982,-17604.28231714,0.00014991,2]
[392769850,1761935438006,-3127.35095761,0.00014991,2]
[392769902,1761935439994,-514.28691293,0.0001499,2]
[392769903,1761935440003,-956.80890525,0.00014991,2]
[392769904,1761935440014,-431.60303797,0.00014991,2]
[392769905,1761935440155,-3511.5757347,0.00014991,2]
[392769910,1761935440362,-1139.5285192,0.00014991,2]
[392769913,1761935440386,-1453.32539497,0.00014991,2]
[392769921,1761935442981,-150.0,0.00014979,2]
[392769922,1761935442991,-1893.67637257,0.00014991,2]
[392769923,1761935443078,-995.1864,0.00014991,2]
[392769978,1761935445886,-500.0,0.00014979,2]
[392769980,1761935445896,-150.0,0.00014979,2]
[392769981,1761935445905,-33138.24828008,0.00014991,2]
[392769982,1761935445940,-596.86146136,0.00014991,2]
[392769983,1761935445996,-9646.21012586,0.00014991,2]
[392769984,1761935446007,-447.92702569,0.00014991,2]
[392770068,1761935492342,41020.43376292,0.0003,120]
[392770069,1761935608795,150.0,0.00014023,120]
[392770073,1761935843317,1018.51,0.00013943,2]
[392770077,1761935940404,3300.0,0.000142,5]
[392770078,1761935942522,6600.0,0.000143,5]
[392770079,1761935944568,715.05544125,0.0001499,5]
[392770080,1761935944607,1023.12813421,0.00014999,5]
[392770081,1761935944649,9900.0,0.000144,5]
[392770082,1761935944690,1023.12813421,0.0001499,5]
[392770083,1761935944738,1023.12813421,0.0001499,5]
[392770084,1761935944807,1023.12813421,0.0001499,5]
[392770085,1761935944853,1023.12813421,0.0001499,5]
[392770086,1761935944892,1023.12813421,0.00014999,5]
[392770087,1761935944936,1023.12813419,0.00014999,5]
[392770088,1761935946771,13300.0,0.000145,5]
[392770089,1761935948944,16600.0,0.000146,5]
[392770090,1761935951020,3300.0,0.000147,5]
[392770091,1761935953194,3300.0,0.000148,5]
[392770092,1761935955296,3300.0,0.000149,5]
[392770093,1761935970244,157.00207086,0.00015,20]
[392770102,1761936112012,171.0,0.00027397,120]
[392770103,1761936179220,832.52,0.00013915,2]
[392770104,1761936190815,1330.99,0.00013922,2]
[392770105,1761936199733,747.96,6.958e-05,2]
[392770106,1761936199931,747.96,7.324e-05,2]
[392770107,1761936200179,747.96,7.69e-05,2]
[392770108,1761936200386,747.96,8.056e-05,2]
[392770109,1761936200603,747.96,8.423e-05,2]
[392770110,1761936200816,747.96,8.789e-05,2]
[392770111,1761936201021,747.96,9.155e-05,2]
[392770112,1761936201222,747.96,9.521e-05,2]
[392770113,1761936201435,747.96,9.887e-05,2]
[392770114,1761936201694,747.96,0.00010254,2]
[392770115,1761936201855,747.96,0.0001062,2]
[392770116,1761936202052,747.96,0.00010986,2]
[392770117,1761936202245,747.96,0.00011352,2]
[392770118,1761936202438,747.96,0.00011718,2]
[392770119,1761936202648,747.96,0.00012085,2]
[392770120,1761936207119,747.96,0.00012451,2]
[392770121,1761936207452,747.96,0.00012817,2]
[392770122,1761936207670,747.96,0.00013183,2]
[392770123,1761936207866,747.96,0.00013549,2]
[392770124,1761936208066,747.96,0.00013915,2]
[392770126,1761936230598,335.3507445,0.00013537,2]
[392770127,1761936242067,203.53,0.00013938,3]
[392770129,1761936305983,150.0,0.00013488,2]
[392770130,1761936307421,955.55,0.00013901,2]
[392770131,1761936309194,150.0,0.00013488,2]
[392770132,1761936312852,150.0,0.00013488,2]
[392770133,1761936312892,150.0,0.00013987,2]
[392770134,1761936312967,150.0,0.00013488,2]
[392770135,1761936313004,150.0,0.00013488,2]
[392770136,1761936314666,150.0,0.00013488,2]
[392770137,1761936317265,150.0,0.00013488,2]
[392770138,1761936326261,150.0,0.00013488,2]
[392770139,1761936327598,150.0,0.00013488,2]
[392770140,1761936327884,150.0,0.00013488,2]
[392770143,1761936427973,300.0,0.000142,5]
[392770144,1761936430141,600.0,0.000143,5]
[392770145,1761936432250,1000.0,0.000144,5]
[392770146,1761936434393,1300.0,0.000145,5]
[392770147,1761936436477,1700.0,0.000146,5]
[392770148,1761936438630,300.0,0.000147,5]
[392770149,1761936440771,300.0,0.000148,5]
[392770150,1761936442878,300.0,0.000149,5]
[392770151,1761936459622,150.0,0.00013876,2]
[392770152,1761936467091,1852.42,0.00013921,2]
[392770156,1761936589995,999.0,0.0001387,3]
[392770158,1761936607302,169.0,0.00018,30]
[392770159,1761936607463,163.0,0.00018,30]
[392770160,1761936607545,163.0,0.00018,30]
[392770161,1761936607635,163.0,0.00018,30]
[392770162,1761936607818,163.0,0.00018,30]
[392770163,1761936608038,163.0,0.00018,30]
[392770164,1761936608277,163.0,0.00018,30]
[392770165,1761936608576,163.0,0.00018,30]
[392770166,1761936608817,163.0,0.00018,30]
[392770167,1761936609098,163.0,0.00018,30]
[392770168,1761936609563,163.0,0.00018,30]
[392770169,1761936610339,165.0,0.00018,30]
[392770170,1761936610985,152.0,0.00018,30]
[392770171,1761936611172,152.0,0.00018,30]
[392770172,1761936611248,152.0,0.00018,30]
[392770173,1761936611318,152.0,0.00018,30]
[392770174,1761936611733,152.0,0.00018,30]
[392770175,1761936611947,152.0,0.00018,30]
[392770176,1761936611989,162.600299,2e-08,2]
[392770177,1761936612162,152.0,0.00018,30]
[392770178,1761936612702,152.0,0.00018,30]
[392770179,1761936612937,152.0,0.00018,30]
[392770180,1761936613140,152.0,0.00018,30]
[392770181,1761936613359,152.0,0.00018,30]
[392770182,1761936613583,152.0,0.00018,30]
[392770183,1761936613815,152.0,0.00018,30]
[392770184,1761936614025,152.0,0.00018,30]
[392770185,1761936614232,152.0,0.00018,30]
[392770186,1761936614483,152.0,0.00018,30]
[392770187,1761936614709,152.0,0.00018,30]
[392770188,1761936614920,152.0,0.00018,30]
[392770189,1761936615136,152.0,0.00018,30]
[392770190,1761936615373,152.0,0.00018,30]
[392770191,1761936615591,152.0,0.00018,30]
[392770192,1761936615808,152.0,0.00018,30]
[392770193,1761936616065,152.0,0.00018,30]
[392770210,1761936632009,-150.0,0.00014023,2]
[392770211,1761936632019,-195.0,0.00014037,2]
[392770212,1761936632028,-300.0,0.00014051,2]
[392770213,1761936632037,-150.0,0.00014237,2]
[392770214,1761936632047,-150.0,0.00014237,2]
[392770215,1761936632057,-150.0,0.00014237,2]
[392770216,1761936632068,-168.0,0.00014477,2]
[392770217,1761936632079,-150.0,0.00014487,2]
[392770218,1761936632089,-834.57460752,0.00014525,2]
[392770219,1761936632099,-224.15,0.00014548,2]
[392770220,1761936632108,-1425.0,0.00014641,2]
[392770221,1761936632118,-216.9840124,0.00014651,2]
[392770222,1761936632129,-1425.0,0.00014681,2]
[392770223,1761936632139,-400.0,0.00014723,2]
[392770224,1761936632149,-300.0,0.00014723,2]
[392770225,1761936632158,-300.0,0.00014723,2]
[392770226,1761936632167,-1200.0,0.00014723,2]
[392770227,1761936632177,-1425.0,0.00014724,2]
[392770228,1761936632187,-1960.51,0.00014724,2]
[392770229,1761936632196,-8968.18,0.00014724,2]
[392770230,1761936632205,-1000.0,0.00014738,2]
[392770231,1761936632214,-1129.04841495,0.00014746,2]
[392770232,1761936632224,-1425.0,0.00014753,2]
[392770233,1761936632233,-1000.0,0.00014757,2]
[392770234,1761936632242,-1000.0,0.0001476,2]
[392770235,1761936632252,-1425.0,0.00014774,2]
[392770236,1761936632261,-1425.0,0.00014781,2]
[392770237,1761936632270,-2280.0,0.00014797,2]
[392770238,1761936632279,-1425.0,0.00014806,2]
[392770239,1761936632289,-150.0,0.00014808,2]
[392770240,1761936632299,-1425.0,0.00014809,2]
[392770241,1761936632308,-1425.0,0.0001482,2]
[392770242,1761936632317,-1000.0,0.00014827,2]
[392770243,1761936632326,-2820.25631,0.0001484,2]
[392770244,1761936632336,-237.55075549,0.00014841,2]
[392770245,1761936632345,-1000.0,0.00014844,2]
[392770246,1761936632354,-168.0,0.00014845,2]
[392770247,1761936632364,-1425.0,0.00014851,2]
[392770248,1761936632375,-1425.0,0.00014855,2]
[392770249,1761936632384,-200.0,0.00014858,2]
[392770250,1761936632394,-1425.0,0.00014879,2]
[392770251,1761936632404,-200.0,0.0001488,2]
[392770252,1761936632414,-295.77703678,0.00014884,2]
[392770253,1761936632423,-151.0,0.00014884,2]
[392770254,1761936632433,-151.0,0.00014884,2]
[392770256,1761936632442,-151.0,0.00014884,2]
[392770258,1761936632451,-151.0,0.00014884,2]
[392770260,1761936632461,-151.0,0.00014884,2]
[392770262,1761936632470,-151.0,0.00014884,2]
[392770264,1761936632479,-151.0,0.00014884,2]
[392770266,1761936632488,-151.0,0.00014884,2]
[392770268,1761936632498,-151.0,0.00014884,2]
[392770270,1761936632507,-151.0,0.00014884,2]
[392770301,1761936632778,-500.0,0.00014884,2]
[392770303,1761936632787,-500.0,0.00014884,2]
[392770305,1761936632796,-500.0,0.00014884,2]
[392770306,1761936632805,-500.0,0.00014884,2]
[392770307,1761936632819,-574.12855637,0.00014884,2]
[392770308,1761936632828,-500.0,0.00014884,2]
[392770309,1761936632838,-500.0,0.00014884,2]
[392770310,1761936632847,-500.0,0.00014884,2]
[392770311,1761936632857,-500.0,0.00014884,2]
[392770312,1761936632866,-500.0,0.00014884,2]
[392770313,1761936632875,-500.0,0.00014884,2]
[392770314,1761936632885,-500.0,0.00014884,2]
[392770315,1761936632894,-500.0,0.00014884,2]
[392770316,1761936632903,-1425.0,0.00014887,2]
[392770317,1761936632912,-773.7256,0.0001489,2]
[392770319,1761936632921,-526.0524,0.00014891,2]
[392770321,1761936632930,-1288.90352921,0.00014891,2]
[392770323,1761936632939,-1288.90352921,0.00014891,2]
[392770325,1761936632955,-5000.0,0.00014891,2]
[392770327,1761936632966,-189.4057124,0.00014893,2]
[392770329,1761936632975,-189.4057124,0.00014894,2]
[392770331,1761936632984,-189.4057124,0.00014896,2]
[392770333,1761936632993,-166.355,0.00014896,2]
[392770335,1761936633002,-189.4057124,0.00014897,2]
[392770337,1761936633011,-1425.0,0.00014897,2]
[392770339,1761936633021,-189.4057124,0.00014898,2]
[392770341,1761936633030,-189.4057124,0.00014899,2]
[392770343,1761936633040,-438.03827064,0.00014899,2]
[392770345,1761936633054,-2904.03072936,0.00014899,2]
[392770347,1761936633063,-189.4057124,0.000149,2]
[392770349,1761936633072,-248.1741337,0.000149,2]
[392770351,1761936633081,-1425.0,0.00014912,2]
[392770353,1761936633090,-1000.0,0.00014919,2]
[392770355,1761936633100,-329.45,0.00014924,2]
[392770357,1761936633109,-346.45,0.00014924,2]
[392770359,1761936633118,-1000.0,0.0001494,2]
[392770361,1761936633127,-168.0,0.00014941,2]
[392770363,1761936633137,-1425.0,0.00014943,2]
[392770365,1761936633147,-1425.0,0.00014956,2]
[392770367,1761936633156,-1000.0,0.00014962,2]
[392770369,1761936633167,-1467.06179271,0.0001497,2]
[392770371,1761936633176,-1000.0,0.0001497,2]
[392770373,1761936633187,-500.0,0.00014973,2]
[392770375,1761936633196,-641.73489107,0.00014973,2]
[392770377,1761936633205,-500.95705604,0.00014973,2]
[392770379,1761936633214,-500.0,0.00014973,2]
[392770381,1761936633224,-500.0,0.00014973,2]
[392770383,1761936633234,-500.0,0.00014973,2]
[392770385,1761936633244,-374.54110567,0.00014973,2]
[392770387,1761936633253,-500.0,0.00014973,2]
[392770389,1761936633264,-500.0,0.00014973,2]
[392770391,1761936633274,-500.0,0.00014973,2]
[392770393,1761936633283,-2820.25631,0.0001498,2]
[392770395,1761936633292,-1095.45,0.00014982,2]
[392770397,1761936633301,-1425.0,0.00014983,2]
[392770399,1761936633311,-150.27602974,0.00014986,2]
[392770401,1761936633320,-150.00000001,0.00014986,2]
[392770403,1761936633329,-150.0,0.00014986,2]
[392770405,1761936633339,-150.0,0.00014986,2]
[392770407,1761936633348,-150.0,0.00014986,2]
[392770409,1761936633357,-150.0,0.00014986,2]
[392770411,1761936633366,-254.73793039,0.00014986,2]
[392770413,1761936633376,-283.18139763,0.00014986,2]
[392770415,1761936633386,-151.0,0.00014988,2]
[392770417,1761936633395,-165.68141328,0.00014988,2]
[392770419,1761936633405,-500.0,0.00014989,2]
[392770421,1761936633414,-500.0,0.00014989,2]
[392770423,1761936633423,-500.0,0.00014989,2]
[392770425,1761936633432,-500.0,0.00014989,2]
[392770427,1761936633441,-500.0,0.00014989,2]
[392770429,1761936633450,-500.0,0.00014989,2]
[392770431,1761936633459,-500.0,0.00014989,2]
[392770433,1761936633468,-500.0,0.00014989,2]
[392770435,1761936633478,-500.0,0.00014989,2]
[392770437,1761936633487,-500.0,0.00014989,2]
[392770439,1761936633496,-500.0,0.00014989,2]
[392770441,1761936633505,-500.0,0.00014989,2]
[392770443,1761936633514,-395.20663293,0.00014989,2]
[392770446,1761936633525,-500.0,0.00014989,2]
[392770447,1761936633534,-500.0,0.00014989,2]
[392770449,1761936633543,-500.0,0.00014989,2]
[392770451,1761936633553,-500.0,0.00014989,2]
[392770453,1761936633563,-500.0,0.00014989,2]
[392770455,1761936633571,-500.0,0.00014989,2]
[392770458,1761936633582,-500.0,0.00014989,2]
[392770459,1761936633591,-500.0,0.00014989,2]
[392770462,1761936633601,-500.0,0.00014989,2]
[392770464,1761936633610,-500.0,0.00014989,2]
[392770465,1761936633619,-500.0,0.00014989,2]
[392770468,1761936633629,-500.0,0.00014989,2]
[392770469,1761936633638,-500.0,0.00014989,2]
[392770472,1761936633648,-500.0,0.00014989,2]
[392770474,1761936633657,-500.0,0.00014989,2]
[392770476,1761936633667,-500.0,0.00014989,2]
[392770478,1761936633676,-500.0,0.00014989,2]
[392770479,1761936633685,-500.0,0.00014989,2]
[392770482,1761936633695,-500.0,0.00014989,2]
[392770483,1761936633704,-500.0,0.00014989,2]
[392770486,1761936633714,-500.0,0.00014989,2]
[392770488,1761936633723,-500.0,0.00014989,2]
[392770490,1761936633732,-500.0,0.00014989,2]
[392770492,1761936633742,-500.0,0.00014989,2]
[392770494,1761936633751,-197.74827115,0.0001499,2]
[392770496,1761936633761,-59896.7830882,0.0001499,2]
[392770498,1761936633770,-3049.3228725,0.0001499,2]
[392770500,1761936633780,-500.0,0.0001499,2]
[392770502,1761936633789,-500.0,0.0001499,2]
[392770504,1761936633798,-563.72792144,0.0001499,2]
[392770505,1761936633808,-11748.17131048,0.0001499,2]
[392770508,1761936633823,-5673.0,0.0001499,2]
[392770511,1761936633851,-13821.05903976,0.0001499,2]
[392770515,1761936633871,-600.59027229,0.0001499,2]
[392770517,1761936633883,-4289.63826768,0.0001499,2]
[392770519,1761936633895,-2415.41586317,0.0001499,2]
[392770521,1761936633907,-605.71259571,0.0001499,2]
[392770524,1761936633920,-3115.61143538,0.0001499,2]
[392770526,1761936633932,-1644.61896634,0.0001499,2]
[392770528,1761936633943,-387.11639996,0.0001499,2]
[392770530,1761936633971,-1475.08570537,0.0001499,2]
[392770531,1761936633984,-13910.25227614,0.0001499,2]
[392770532,1761936634007,-158794.97854132,0.0001499,2]
[392770533,1761936634017,-500.0,0.0001499,2]
[392770534,1761936634027,-500.0,0.0001499,2]
[392770535,1761936634037,-500.0,0.0001499,2]
[392770536,1761936634046,-17744.29442496,0.0001499,2]
[392770537,1761936634073,-780.71527075,0.0001499,2]
[392770538,1761936634084,-2582.67577394,0.0001499,2]
[392770539,1761936634095,-3839.66373871,0.0001499,2]
[392770540,1761936634106,-515.71559737,0.0001499,2]
[392770541,1761936634118,-2172.30999241,0.0001499,2]
[392770542,1761936634129,-1500.0,0.0001499,2]
[392770550,1761936637901,-760.97130147,0.0001499,2]
[392770551,1761936637912,-3034.29557561,0.0001499,2]
[392770554,1761936637959,-1403.02179889,0.0001499,2]
[392770555,1761936638013,-1132.97187161,0.0001499,2]
[392770556,1761936638025,-1259.54392304,0.0001499,2]
[392770557,1761936638066,-10726.29698601,0.0001499,2]
[392770558,1761936638121,-1109.46875634,0.0001499,2]
[392770559,1761936638133,-495.1497182,0.0001499,2]
[392770602,1761936640063,-25415.0608598,0.0001499,2]
[392770609,1761936640117,-2618.46411034,0.0001499,2]
[392770611,1761936640130,-2363.33667035,0.0001499,2]
[392770613,1761936640139,-252.2740177,0.0001499,2]
[392770615,1761936640148,-278.92520161,0.0001499,2]
[392770617,1761936640159,-221.07479839,0.0001499,2]
[392770619,1761936640169,-107.94597031,0.0001499,2]
[392770622,1761936640180,-139.03860516,0.0001499,2]
[392770624,1761936640190,-150.0,0.0001499,2]
[392770626,1761936640199,-150.46513121,0.0001499,2]
[392770628,1761936640209,-500.0,0.0001499,2]
[392770630,1761936640218,-150.0,0.0001499,2]
[392770632,1761936640227,-500.0,0.0001499,2]
[392770634,1761936640236,-500.0,0.0001499,2]
[392770636,1761936640246,-83.45026369,0.0001499,2]
[392770638,1761936640261,-416.54973631,0.0001499,2]
[392770640,1761936640270,-354.52673287,0.0001499,2]
[392770642,1761936640282,-145.47326713,0.0001499,2]
[392770644,1761936640291,-500.0,0.0001499,2]
[392770646,1761936640300,-272.61229887,0.0001499,2]
[392770647,1761936640315,-227.38770113,0.0001499,2]
[392770648,1761936640324,-77.0255124,0.0001499,2]
[392770649,1761936640346,-686.76799763,0.0001499,2]
[392770650,1761936640369,-2388.27708507,0.0001499,2]
[392770651,1761936640378,-504.07114222,0.0001499,2]
[392770652,1761936640387,-109.3986809,0.0001499,2]
[392770653,1761936640398,-390.6013191,0.0001499,2]
[392770654,1761936640407,-500.0,0.0001499,2]
[392770655,1761936640417,-500.0,0.0001499,2]
[392770656,1761936640426,-500.0,0.0001499,2]
[392770657,1761936640435,-500.0,0.0001499,2]
[392770658,1761936640444,-500.0,0.0001499,2]
[392770659,1761936640454,-2995.5090048,0.0001499,2]
[392770660,1761936640463,-500.0,0.0001499,2]
[392770661,1761936640472,-198.85858294,0.0001499,2]
[392770662,1761936640483,-301.14141706,0.0001499,2]
[392770663,1761936640492,-2995.95858294,0.0001499,2]
[392770665,1761936640504,-504.32687636,0.0001499,2]
[392770667,1761936640512,-500.0,0.0001499,2]
[392770669,1761936640521,-500.0,0.0001499,2]
[392770670,1761936640531,-500.0,0.0001499,2]
[392770671,1761936640540,-500.0,0.0001499,2]
[392770672,1761936640549,-500.0,0.0001499,2]
[392770673,1761936640561,-598.59006632,0.0001499,2]
[392770674,1761936640570,-500.0,0.0001499,2]
[392770675,1761936640580,-500.0,0.0001499,2]
[392770676,1761936640589,-500.0,0.0001499,2]
[392770677,1761936640598,-440.86455765,0.0001499,2]
[392770678,1761936640609,-59.13544235,0.0001499,2]
[392770679,1761936640619,-305.49462475,0.0001499,2]
[392770680,1761936640628,-503.03701629,0.0001499,2]
[392770681,1761936640637,-500.0,0.0001499,2]
[392770682,1761936640646,-500.0,0.0001499,2]
[392770683,1761936640655,-500.0,0.0001499,2]
[392770684,1761936640665,-500.0,0.0001499,2]
[392770685,1761936640674,-500.0,0.0001499,2]
[392770686,1761936640683,-500.0,0.0001499,2]
[392770687,1761936640692,-500.0,0.0001499,2]
[392770688,1761936640701,-500.0,0.0001499,2]
[392770689,1761936640710,-500.0,0.0001499,2]
[392770690,1761936640719,-500.0,0.0001499,2]
[392770691,1761936640729,-500.0,0.0001499,2]
[392770692,1761936640738,-500.0,0.0001499,2]
[392770693,1761936640747,-500.0,0.0001499,2]
[392770694,1761936640756,-500.0,0.0001499,2]
[392770695,1761936640765,-27327.63232306,0.0001499,2]
[392770696,1761936640778,-3946.00794361,0.0001499,2]
[392770697,1761936640794,-2822.21558554,0.0001499,2]
[392770698,1761936640805,-880.0301178,0.0001499,2]
[392770740,1761936643069,-7222.27162659,0.0001499,2]
[392770742,1761936643080,-150.0,0.0001499,2]
[392770744,1761936643091,-150.0,0.0001499,2]
[392770747,1761936643102,-150.0,0.0001499,2]
[392770749,1761936643113,-250.0,0.0001499,2]
[392770751,1761936643122,-150.0,0.0001499,2]
[392770753,1761936643131,-150.0,0.0001499,2]
[392770755,1761936643141,-500.0,0.0001499,2]
[392770757,1761936643150,-500.0,0.0001499,2]
[392770759,1761936643163,-500.0,0.0001499,2]
[392770761,1761936643173,-500.0,0.0001499,2]
[392770763,1761936643183,-500.0,0.0001499,2]
[392770765,1761936643193,-500.0,0.0001499,2]
[392770768,1761936643204,-500.0,0.0001499,2]
[392770770,1761936643216,-500.0,0.0001499,2]
[392770771,1761936643226,-500.0,0.0001499,2]
[392770772,1761936643236,-500.0,0.0001499,2]
[392770773,1761936643245,-500.0,0.0001499,2]
[392770774,1761936643254,-500.0,0.0001499,2]
[392770775,1761936643264,-500.0,0.0001499,2]
[392770776,1761936643274,-500.0,0.0001499,2]
[392770778,1761936643284,-508.29032832,0.0001499,2]
[392770780,1761936643294,-9287.0285477,0.0001499,2]
[392770782,1761936643305,-500.0,0.0001499,2]
[392770784,1761936643315,-500.0,0.0001499,2]
[392770786,1761936643325,-500.0,0.0001499,2]
[392770788,1761936643336,-525.03693611,0.0001499,2]
[392770791,1761936643346,-500.0,0.0001499,2]
[392770793,1761936643359,-500.0,0.0001499,2]
[392770795,1761936643369,-500.0,0.0001499,2]
[392770797,1761936643379,-500.0,0.0001499,2]
[392770799,1761936643390,-500.0,0.0001499,2]
[392770801,1761936643399,-500.0,0.0001499,2]
[392770803,1761936643409,-500.0,0.0001499,2]
[392770805,1761936643419,-500.0,0.0001499,2]
[392770807,1761936643428,-500.0,0.0001499,2]
[392770809,1761936643439,-500.0,0.0001499,2]
[392770812,1761936643449,-500.0,0.0001499,2]
[392770814,1761936643459,-500.0,0.0001499,2]
[392770816,1761936643468,-549.02756739,0.0001499,2]
[392770818,1761936643478,-512.13243822,0.0001499,2]
[392770819,1761936643487,-150.0,0.0001499,2]
[392770821,1761936643497,-500.0,0.0001499,2]
[392770824,1761936643506,-781.0,0.0001499,2]
[392770826,1761936643516,-500.0,0.0001499,2]
[392770828,1761936643525,-500.0,0.0001499,2]
[392770830,1761936643534,-500.0,0.0001499,2]
[392770832,1761936643548,-179.75162294,0.0001499,2]
[392770834,1761936643558,-150.0,0.0001499,2]
[392770837,1761936643568,-150.0,0.0001499,2]
[392770839,1761936643578,-150.0,0.0001499,2]
[392770841,1761936643587,-150.0,0.0001499,2]
[392770843,1761936643598,-1738.0,0.00014991,2]
[392770845,1761936643607,-13123.27653427,0.00014991,2]
[392770849,1761936643640,-500.0,0.0001499,2]
[392770852,1761936643651,-7150.32036498,0.00014991,2]
[392770868,1761936643999,-232527.53812743,0.00014991,2]
[392770871,1761936646042,-150.0,0.0001499,2]
[392770872,1761936646052,-150.0,0.0001499,2]
[392770873,1761936646062,-153.0,0.00014991,2]
[392770874,1761936646252,-5485.0,0.00014991,2]
[392770875,1761936646266,-512.46264016,0.00014991,2]
[392770876,1761936646308,-7462.10576362,0.00014991,2]
[392770877,1761936646320,-250.0,0.00014991,2]
[392770878,1761936646330,-1459.2644164,0.00014991,2]
[392770879,1761936646341,-467.88428273,0.00014991,2]
[392770881,1761936793483,500.0,0.00013923,2]
[392770896,1761936950588,500.0,0.00013948,2]
[392770902,1761937091553,150.0,0.00013919,2]
[392770911,1761937209815,3341.27,0.00014877,14]
[392770912,1761937214141,579.08,0.00013699,2]
[392770913,1761937231153,176.43,0.0001113,2]
[392770924,1761937259633,158.07,0.00013904,2]